Cogmind - Beta 17 @@@ ROGUE MODE // 2026.08.21 @ 10:40:57 Player: Six of Ten Result: Destroyed by G-34 Mercenary with Small Laser Performance ------------- Evolutions (1) 500 Regions Visited (3) 600 Robots Destroyed (44) 220 Value Destroyed (1375) 1375 Prototype IDs (1) 20 Alien Tech Used (0) 0 Bonus (0) 0 TOTAL SCORE: 2715 Bonus ------- None Cogmind --------- Core Integrity 0/400 Matter 300/300 Energy 123/125 System Corruption 0% Temperature Cool (7) Movement Treading (160) Location -9/Storage Parts ------- > --- POWER (1) -------- Light Ion Engine > --- PROPULSION (2) --- Light Treads > --- UTILITY (4) ------ Heat Sink Improved Heat Sink Small Storage Unit Improved Targeting Computer > --- WEAPON (2) ------- Beam Rifle > --- INVENTORY (8) ---- Aluminum Leg Aluminum Leg Flight Unit Flight Unit Medium Laser Ion Burst Cannon Grenade Launcher Peak State ------------ > --- POWER ------------ (None) > --- PROPULSION ------- Light Treads Light Treads > --- UTILITY ---------- Improved Heat Sink Small Storage Unit Improved Targeting Computer > --- WEAPON ----------- Beam Rifle Ion Burst Cannon > --- INVENTORY -------- Light Treads Aluminum Leg Aluminum Leg Flight Unit Flight Unit Medium Laser Beam Rifle Grenade Launcher [Rating: 16] Favorites ----------- Power Light Ion Engine Engine Light Ion Engine Propulsion Light Treads Treads Light Treads Utility Light Armor Plating Device Heat Sink Storage Small Storage Unit Processor Improved Targeting Computer Protection Light Armor Plating Weapon Beam Rifle Energy Gun Beam Rifle Energy Cannon Ion Burst Cannon Ballistic Gun Heavy Assault Rifle Build | -11 -10 -9 -9 ------- Run | Yrd Mat Mat Sto Slots Evolved 2 | . . 2 . Power . | . . . . Propulsion . | . . . . Utility 2 | . . 2 . Weapon . | . . . . Parts Attached 36 | 6 1 23 6 Power 5 | 1 . 2 2 Engine 5 | 1 . 2 2 Core . | . . . . Reactor . | . . . . Propulsion 7 | 2 . 5 . Treads 7 | 2 . 5 . Leg . | . . . . Wheel . | . . . . Hover . | . . . . Flight . | . . . . Utility 15 | 1 1 11 2 Device 6 | . . 5 1 Storage 1 | 1 . . . Processor 2 | . . 1 1 Hackware . | . . . . Protection 6 | . 1 5 . Artifact . | . . . . Weapon 9 | 2 . 5 2 Energy Gun 6 | 2 . 3 1 Energy Cannon 1 | . . . 1 Ballistic Gun 2 | . . 2 . Ballistic Cannon . | . . . . Launcher . | . . . . Special Weapon . | . . . . Impact Weapon . | . . . . Slashing Weapon . | . . . . Piercing Weapon . | . . . . Special Melee Weapon . | . . . . Unidentified Prototypes 1 | . . . 1 Parts Lost 14 | . . 8 6 Power 1 | . . . 1 Propulsion 3 | . . 1 2 Utility 6 | . . 4 2 Weapon 4 | . . 3 1 Highest Loss Streak 5 | . . 5 2 To Critical Strikes . | . . . . Average Backups 7 | 2 6 7 7 Power 1 | . 1 1 . Propulsion 3 | 1 2 3 5 Utility . | . . . . Weapon 1 | . 1 1 1 Tool/Special . | . . . . Unused Backups 7 | . . 2 5 Power 1 | . . 1 . Propulsion 5 | . . 1 4 Utility . | . . . . Weapon 1 | . . . 1 Tool/Special . | . . . . Average Slot Usage (%) 95 | . 95 97 89 Engine 11 | . 14 11 8 Treads 23 | . 27 21 19 Device 8 | . . 10 13 Storage 11 | . 14 11 11 Processor 3 | . . 1 9 Protection 13 | . 11 19 5 Energy Gun 18 | . 27 12 20 Ballistic Gun 4 | . . 8 . Peak Build Rating 16 | 6 8 15 16 Average Rating 10 | 4 7 12 12 On Entrance 6 | . 6 8 13 Avg Prop Armor Cover (%) . | . . . . Naked Turns . | . . . . Heaviest Build 29 | 12 15 29 24 Greatest Support 40 | 40 40 40 40 Greatest Overweight (x) . | . . . . Average Overweight (x) . | . . . . Largest Inventory Capacity 8 | 8 8 8 8 Average Capacity 7 | 5 8 8 8 Most Carried 8 | 5 8 8 8 Average Carried 7 | 2 6 7 7 Final Capacity 8 | 8 8 8 8 Final Carried 8 | 4 8 7 7 Class Distribution -------------------- 62% | Scavenger-Mutant 37% | Mutant Dominant Class ---------------- Mutant | -10/Materials Scavenger-Mutant | -9/Materials Scavenger-Mutant | -9/Storage Resources | -11 -10 -9 -9 ----------- Run | Yrd Mat Mat Sto Matter Collected 895 | 202 118 429 146 Remotely . | . . . . Salvage Created 1652 | . 183 1057 412 Parts 90 | . 12 61 17 Haulers Intercepted . | . . . . Recyclers Shooed . | . . . . Parts Field Recycled . | . . . . Retrieved Matter . | . . . . Parts Self-Destructed . | . . . . Prevented . | . . . . Parts Restored . | . . . . Kills | -11 -10 -9 -9 ------- Run | Yrd Mat Mat Sto Combat Hostiles Destroyed 37 | . 6 21 10 Guns 33 | . 3 20 10 AOE 4 | . 3 1 . Classes Destroyed 8 | . 3 4 1 Worker 1 | . . . 1 Recycler 1 | . . 1 . Operator 1 | . 1 . . Watcher 4 | . . 2 2 Swarmer 8 | . 3 . 5 Grunt 15 | . 3 12 . Duelist 1 | . . 1 . Sentry 13 | . . 8 5 Best Kill Streak 4 | . 3 3 4 Combat Bots Only 3 | . 3 3 2 Max Kills in Single Turn 3 | . 3 3 1 Gunslinging . | . . . . Exploded 3 | . 3 1 . Melee . | . . . . Uniques/NPCs Destroyed . | . . . . Combat | -11 -10 -9 -9 -------- Run | Yrd Mat Mat Sto Hostile Shots Fired 247 | . 14 148 85 Missed 64 | . 4 36 24 Hits 183 | . 10 112 61 Melee 5 | . . 5 . Projectile 178 | . 10 107 61 Critical Strikes 3 | . . . 3 Damage Taken 2687 | . 133 1772 782 Core 425 | . 17 198 210 Absorbed by Shields . | . . . . Regen/Repaired (Parts) 311 | . 14 234 63 Core Remaining (%) 96 | 100 93 . . Volleys Fired 121 | . 9 76 36 Largest 2 | . 2 2 2 Hottest 112 | . 90 106 112 Shots Fired 228 | . 18 146 64 Gun 228 | . 18 146 64 Cannon . | . . . . Launcher . | . . . . Special . | . . . . Kinetic 65 | . . 65 . Thermal 145 | . 9 72 64 Explosive . | . . . . Electromagnetic 18 | . 9 9 . Robot Hit Streak 23 | . 4 10 23 Robot Miss Streak 3 | . 2 3 2 Penetration Max . | . . . . Secondary Targets 3 | . . 2 1 Max Gunslinging Chain 1 | . . 1 1 Shots Hit Robots 166 | . 10 109 47 Core Hits 72 | . 10 43 19 Critical Kills . | . . . . Critical Parts Destroyed . | . . . . Critical Strikes 7 | . 1 3 3 Burn 5 | . . 2 3 Corrupt 2 | . 1 1 . Melee Attacks . | . . . . Impact . | . . . . Slashing . | . . . . Piercing . | . . . . Sneak Attacks . | . . . . Combat Hostiles . | . . . . Follow-up Attacks . | . . . . Damage Inflicted 3044 | . 408 1962 674 Guns 2338 | . 144 1534 660 Cannons . | . . . . Explosions 692 | . 264 428 . Melee . | . . . . Ramming 14 | . . . 14 Kinetic 593 | . . 593 . Thermal 2198 | . 272 1266 660 Explosive . | . . . . Electromagnetic 239 | . 136 103 . Impact . | . . . . Slashing . | . . . . Piercing . | . . . . Highest Corruption . | . . . . Average Corruption . | . . . . Corruption Purged . | . . . . Corruption Blocked . | . . . . Overload Shots . | . . . . Overflow Damage 39 | . . 39 . Projectiles . | . . . . Explosions 39 | . . 39 . Melee . | . . . . Knockbacks . | . . . . Impact . | . . . . Kinetic . | . . . . Secondary . | . . . . Self-Inflicted Damage 140 | . 5 135 . Shots 3 | . 1 2 . Rammed 7 | . . . 7 Targets Rammed 7 | . . . 7 Kicked . | . . . . Crushed . | . . . . Highest Temperature 254 | . 192 254 71 Average Temperature 51 | . 71 58 16 Received Heat Transfer 966 | . 66 624 276 Siege Activations . | . . . . Martial Activations . | . . . . Shielding Activations . | . . . . Robots Disrupted . | . . . . Combat Hostiles . | . . . . Robots Corrupted . | . . . . Combat Hostiles . | . . . . Parts Fried . | . . . . Impact Corruptions . | . . . . Robots Melted . | . . . . Combat Hostiles . | . . . . Parts Melted 13 | . . 4 9 Heat Transferred 4977 | . 298 2681 1998 Parts Sabotaged . | . . . . Parts Stolen . | . . . . Parts Stripped . | . . . . Power Chain Reactions 4 | . 3 1 . Alert | -11 -10 -9 -9 ------- Run | Yrd Mat Mat Sto Maximum Alert Level 1 | . . 1 . Low Security (%) 99 | 100 100 99 100 Level 1 . | . . . . Level 2 . | . . . . Level 3 . | . . . . Level 4 . | . . . . Level 5 . | . . . . High Security . | . . . . Max Security . | . . . . Peak Influence 206 | . 77 206 165 Initial 57 | . . 10 57 Average 92 | . 20 145 92 Influence Increases 1269 | . 207 694 368 Destroy 0b10 Robot/C 740 | . 120 420 200 Destroy 0b10 Robot/NC 30 | . . 15 15 Destroy Leader 218 | . 20 134 64 Successful Hack 69 | . 40 17 12 Disable Machine 45 | . 15 30 . Destroy Structure 47 | . 12 33 2 Lose Combat Pursuer 120 | . . 45 75 Influence Decreases 1222 | . 182 583 457 Entered New Map 94 | . . 15 79 Time Decay 988 | . 182 488 318 Lost Part 140 | . . 80 60 Squads Dispatched 2 | . 1 1 . Investigation 2 | . 1 1 . Extermination . | . . . . Reinforcement . | . . . . Assault . | . . . . Garrison . | . . . . Intercept . | . . . . Searches Triggered . | . . . . Construction Impeded . | . . . . Haulers Reinforced . | . . . . Active Scanning Responses . | . . . . Cargo Convoy Interrupts . | . . . . Stealth | -11 -10 -9 -9 --------- Run | Yrd Mat Mat Sto Distress Signals 5 | . 3 2 . Communications Jammed . | . . . . Distress Signals . | . . . . Times Spotted 58 | . 13 28 17 Peak Tracking Total 8 | . 3 8 5 Tactical Retreats 4 | . . 1 3 Traps | -11 -10 -9 -9 ------- Run | Yrd Mat Mat Sto Traps Triggered 3 | . 2 . 1 Indirectly . | . . . . Trap Hack Attempts . | . . . . Triggered . | . . . . Disarmed 6 | . . 6 . Reprogrammed . | . . . . Reused . | . . . . Traps Extracted . | . . . . Installed . | . . . . Triggered . | . . . . Machines | -11 -10 -9 -9 ---------- Run | Yrd Mat Mat Sto Machines Disabled 3 | . 1 2 . Max in Single Turn 2 | . 1 2 . Machines Repaired . | . . . . Machines Dismantled . | . . . . Machines Sabotaged . | . . . . Overloaded Fab Kills . | . . . . Hacking | -11 -10 -9 -9 --------- Run | Yrd Mat Mat Sto Machines Accessed 24 | . 8 10 6 Terminals 19 | . 7 7 5 Fabricators . | . . . . Repair Stations 3 | . 1 1 1 Recycling Units 1 | . . 1 . Scanalyzers 1 | . . 1 . Garrison Access . | . . . . Total Hacks 82 | . 30 39 13 Successful 44 | . 14 24 6 Failed 38 | . 16 15 7 Catastrophic 3 | . . 2 1 Database Lockouts . | . . . . Manual 55 | . 24 21 10 Terminals 62 | . 27 26 9 Fabricators . | . . . . Repair Stations 14 | . 3 7 4 Recycling Units 3 | . . 3 . Scanalyzers 3 | . . 3 . Garrison Access . | . . . . Terminal Hacks 10 | . 4 5 1 Part Schematic 1 | . 1 . . Open Door 1 | . . . 1 Emergency Access Points 1 | . 1 . . Terminal Index 2 | . 1 1 . Locate Traps 1 | . . 1 . Disarm Traps 1 | . . 1 . Reinforcement Status 1 | . . 1 . Recall Investigation 1 | . . 1 . Zone Layout 1 | . 1 . . Fabricator Hacks . | . . . . Repair Station Hacks 10 | . 2 6 2 Scan Component 5 | . 1 3 1 Repair 5 | . 1 3 1 Recycling Unit Hacks 1 | . . 1 . Report Inventory 1 | . . 1 . Scanalyzer 2 | . . 2 . Retrieve Study 2 | . . 2 . Garrison Access Hacks . | . . . . Unauthorized Hacks 21 | . 8 10 3 Terminals 21 | . 8 10 3 Track 1 | . . 1 . Assimilate 3 | . 2 1 . Botnet 14 | . 5 6 3 Operators 3 | . 1 2 . Fabricators . | . . . . Repair Stations . | . . . . Recycling Units . | . . . . Scanalyzers . | . . . . Garrison Access . | . . . . Data Cores Recovered . | . . . . Used . | . . . . Hacking Detections 25 | . 8 10 7 Full Trace Events 4 | . 1 3 . Feedback Events . | . . . . Feedback Blocked . | . . . . Robot Schematics Acquired . | . . . . Robots Built . | . . . . Authchips . | . . . . Time . | . . . . Total Robot Build Rating . | . . . . Part Schematics Acquired 1 | . 1 . . Parts Built . | . . . . Authchips . | . . . . Time . | . . . . Total Part Build Rating . | . . . . Part Studies Acquired 2 | . . 2 . Parts Repaired 5 | . 1 3 1 Time 136 | . 26 78 32 Parts Recycled . | . . . . Recycled Matter . | . . . . Retrieved Matter . | . . . . Retrieved Components . | . . . . Parts Scanalyzed . | . . . . Part Schematics Acquired . | . . . . Parts Damaged . | . . . . Bothacking | -11 -10 -9 -9 ------------ Run | Yrd Mat Mat Sto Used RIF Installer . | . . . . Robots Hacked . | . . . . Non-combat . | . . . . Combat . | . . . . Robot Hacks Applied . | . . . . Relay Couplers Released . | . . . . Fabnet Peak Effective % . | . . . . Robots Rewired . | . . . . Allies Hacked . | . . . . Hacks Repelled . | . . . . Allies | -11 -10 -9 -9 -------- Run | Yrd Mat Mat Sto Total Allies 1 | . 1 . . Largest Group 1 | . 1 . . Highest-Rated Group 10 | . 10 . . Highest-Rated Ally 10 | . 10 . . Total Orders . | . . . . Ally Attacks . | . . . . Total Damage . | . . . . Kills . | . . . . Allies Corrupted . | . . . . Allies Melted . | . . . . Intel | -11 -10 -9 -9 ------- Run | Yrd Mat Mat Sto Active Infowar (turns) . | . . . . Robot Analysis Total . | . . . . Derelict Logs Recovered . | . . . . Drone Launches . | . . . . Drone Recoveries . | . . . . Exploration | -11 -10 -9 -9 ------------- Run | Yrd Mat Mat Sto Turns Passed 3164 | 117 905 1439 703 Spaces Moved 1397 | 70 498 545 284 Core 7 | 7 . . . Treads 1390 | 63 498 545 284 Legs . | . . . . Wheels . | . . . . Hover . | . . . . Flight . | . . . . Fastest Speed 50 | 50 160 160 160 Average Speed 159 | 149 160 160 160 Slowest Speed 160 | 160 160 160 160 Overloaded Moves . | . . . . Propulsion Burnouts . | . . . . Robots Hopped . | . . . . Potential Cave-ins . | . . . . Cave-ins Triggered . | . . . . Exploration Rate (%) 46 | 3 69 61 53 Regions Visited 3 Branch Regions 1 Pre-discovered Areas . | . . . . Known Exits Taken . | . . . . Unknown Exits Taken 3 | 1 1 1 . Scrap Searched . | . . . . Spaces Dug . | . . . . Terrain Destroyed 38 | . 8 30 . Melee . | . . . . Projectile . | . . . . AOE 38 | . 8 30 . Terrain Rammed . | . . . . Walls Destroyed . | . . . . Machines Disabled . | . . . . Actions | -11 -10 -9 -9 --------- Run | Yrd Mat Mat Sto Total 2091 | 80 585 964 462 Wait 486 | . 69 302 115 Move 1394 | 69 497 544 284 Hop . | . . . . Pick Up 13 | 5 4 1 3 Fast Attach 27 | 5 6 10 6 Attach 7 | 1 . 4 2 Detach 1 | . . . 1 Swap 19 | . . 14 5 Drop 16 | . . 13 3 Fire 121 | . 9 76 36 Melee . | . . . . Ram . | . . . . Kick . | . . . . Crush 7 | . . . 7 Escape Stasis . | . . . . Rewire . | . . . . Trap . | . . . . Miscellaneous . | . . . . Route ------- -11/Scrapyard -10/Materials (discovered 5 exits: *Mat x3 / [*Min] / [*Sub]) -9/Materials (discovered 4 exits: [*Mat x2] / [*Min] / *Sto) -9/Storage History --------- Turn | Location | Event 6 | -11/Scrapyard | Discovered new exit (range 16) 118 | -11/Scrapyard | Entered Materials 119 | -10/Materials | Met a group of wandering Federalists 199 | -10/Materials | Lost 3 allies 218 | -10/Materials | Discovered new exit (range 10) 316 | -10/Materials | Build established: Mutant 478 | -10/Materials | Discovered new exit (range 16) 537 | -10/Materials | Discovered new exit (range 5) 699 | -10/Materials | Discovered new exit (range 3) 784 | -10/Materials | Repaired EM Pulse Gun 991 | -10/Materials | Discovered new exit (range 16) 1023 | -10/Materials | Entered another Materials area 1023 | -9/Materials | Evolved 2 slots: Utility x2 1191 | -9/Materials | Lost 5 parts (1n2u2w) 1293 | -9/Materials | Discovered new exit (range 5) 1498 | -9/Materials | Build established: Scavenger-Mutant 1584 | -9/Materials | Repaired Lgt. Treads 1612 | -9/Materials | Repaired Lgt. Treads 1640 | -9/Materials | Repaired Lgt. Armor Plating 1761 | -9/Materials | Discovered new exit (range 15) 2113 | -9/Materials | Discovered new exit (range 4) 2382 | -9/Materials | Discovered new exit (range 6) 2462 | -9/Materials | Entered Storage 2676 | -9/Storage | Repaired Beam Rifle+ 2713 | -9/Storage | Core integrity fell below 50% 3018 | -9/Storage | Core integrity fell below 20% 3165 | -9/Storage | Destroyed by G-34 Mercenary with Small Laser Last Messages --------------- 03028_ K-01 Serf collects debris. 03029_ Lgt. Treads destroyed. 03030_ S-10 Pest suffers critical hit (Burn). 03030_ S-10 Pest destroyed. 03031_ K-01 Serf collects debris. 03035_ Acquired Lgt. Ion Engine. 03038_ K-01 Serf collects debris. 03040_ Beam Rifle melted. 03040_ Lgt. Treads melted. 03040_ Y-45 Defender destroyed. 03041_ K-01 Serf collects debris. 03043_ Acquired 5 matter. 03044_ K-01 Serf collects debris. 03045_ Acquired 3 matter. 03047_ Acquired 12 matter. 03049_ K-01 Serf collects debris. 03072_ K-01 Serf cleans the Compression Vault. 03151_ Slammed into U-05 Engineer. 03159_ Beam Rifle+ destroyed. 03163_ K-01 Serf destroyed. Map ----- +----------------------------------------------------+ | #??????????????????????????????????????????? | | #??????????????????????????????????????????? | | #########??????????????????????????????????? | | + #??????????????????????????????????? | | # #??????????????????????????????????? | | # #??????????????????????????????????? | | # #??????????????????????????????????? | | # #??????????????????????????????????? | | # #??????????????????????????????????? | | + #???????????? ????????????????????? | | +## ################# ???????????????????? | | T# ???????????????????? | | ## ?????????????????????? | | ## #????????????????????????????? | | #########]] !==#?? ??????????????????????? | | ????????#]] != #?? #????????????????????? | | ????????#]= == #?? #????????????????????? | | ?######## #?# #????????????????????? | | #?# #????????????????????? | | ?########+## #?# #????????????????????? | | ????# """%=# #?# #????????????????????? | | ????# """ !# #?# #????????????????????? | | ????# """%%# #?# #????????????????????? | | ???## % #+##+### #????????????????????? | | ???# # # ######???????????????? | | ???## # """ # @ #???????????????? | | ????######## """ # #???????????????? | | ???????????# """ # ##########?#????? | | ???????????# /g % % ## ###?? | | ???????????# # ####+######## # #? | | ???????????# ###### #? ??????# # #? | | ???????????###???## # """??????# # "" #? | | ?????????????????# u # """"?????# # """ #? | | ?????????????????+ + """"?????# # R" #? | | ?????????????????# # """"#????# # """ #? | | ?????????????????# # ??????# # ??? | | ?????????????????# ##??????????# ##+#???? | | ?????????????????# #???????????# #???? | | ?????????????????# ### ############# #???? | | ?????????????????# ??# + # #???? | | ???????????????? ###+##### """ + #???? | | ???????????????###### ## """ ######???? | | ????????????????????# ## """ #????????? | | ????????????????????# ## #????????? | | ????????????????????# ##########????????? | | ????????????????????########?????????????????? | | | | | | | | | +----------------------------------------------------+ Best States ------------- Heat Dissipation 52 Energy Generation 12 Energy Capacity 265 Matter Stores 300 Matter Capacity 300 Sight Range 16 Terrain Scan Density 10 Armor Coverage 375 Evasion (%) 40 Targeting Accuracy 6 Recoil Reduction 2 Item Schematics ----------------- Datajack | -10/Materials | Hacked Robot Schematics ------------------ None Fabricated ------------ Nothing Repaired ---------- EM Pulse Gun | 68% | -10/Materials Lgt. Treads | 27% | -9/Materials Lgt. Treads | 38% | -9/Materials Lgt. Armor Plating | 48% | -9/Materials Beam Rifle | 16% | -9/Storage Studied --------- Beam Rifle | -9/Materials | Hacked Grenade Launcher | -9/Materials | Hacked Alien Tech Used ----------------- None Achievements -------------- None Challenges ------------ None Game ------ Seed SuspensionSuspensionTracker Manual? 0 Play Time 00:45:41 Cumulative 43.2 hours Start 2026.08.21 @ 09:42:16 End 2026.08.21 @ 10:40:57 Sessions 1 Manual Loads 0 Difficulty Rogue Special Mode None Game No. 58 Rogue 58 Adventurer 0 Explorer 0 Win Type - Total 0 Types 0/0/0/0/0/0/0/0/0/0 Lore% 17 Gallery% 30 Achievement% 22 Wizard Run 0 Options --------- Layout 0 ASCII 1 Keyboard 0 Movement Numpad Keybinds 0 Fullscreen 2 Font 18/SmallcapsGlow Map View 76x50 Zoom Use 0% Tactical HUD 1 Map Filters NONE Filters NONE Steam 1 RUN: 70feaf6d-dcab-4d3d-9ea9-490f293001ab